bitfinex-derivatives/quotes_ETHF0:USTF0_20260308
["timestamp","ask_amount","ask_price","bid_price","bid_amount"]
[1773004094328,0.2558,1954.7,1953.8,0.5451054]
[1773004094636,0.57224901,1954.6,1953.8,0.5451054]
[1773004095233,0.57224901,1954.5,1953.8,0.5451054]
[1773004098033,0.57224901,1954.3,1953.5,7.2391054]
[1773004098433,0.57224901,1954.3,1953.5,6.694]
[1773004098639,0.57224901,1954.3,1953.6,0.5451054]
[1773004098936,0.57224901,1954.1,1953.4,0.5451054]
[1773004099240,0.57224901,1954.1,1953.2,0.5451054]
[1773004110456,0.57224901,1954.2,1953.4,0.5451054]
[1773004110654,0.26205479,1954.7,1953.4,0.5451054]
[1773004110855,0.57224901,1954.1,1953.4,0.5451054]
[1773004112254,0.57224901,1954.6,1953.4,0.5451054]
[1773004113252,0.57364175,1954.4,1953.4,0.5451054]
[1773004118363,0.57364175,1953.8,1952.9,0.56205704]
[1773004118565,0.57364175,1953.6,1952.9,0.56205704]
[1773004119960,2.66933729,1953.6,1952.7,0.56205704]
[1773004120160,0.57364175,1953.5,1952.7,0.56205704]
[1773004123267,0.57364175,1953.5,1952.8,0.56606611]
[1773004125370,0.57364175,1953.6,1952.8,0.56606611]
[1773004130478,0.57364175,1954.1,1952.8,0.56606611]
[1773004131980,0.57364175,1954.0,1952.8,0.56606611]
[1773004138684,0.57364175,1953.6,1952.8,0.56606611]
[1773004140580,0.57364175,1953.9,1952.8,0.56606611]
[1773004141284,7.26864175,1953.9,1952.8,0.56606611]
[1773004141486,0.57364175,1953.8,1952.8,0.56606611]
[1773004143590,0.57364175,1953.8,1952.9,0.55039989]
[1773004146889,0.5536056,1953.4,1952.8,0.58009143]
[1773004149492,0.5536056,1953.4,1952.8,0.60142521]
[1773004149791,0.5536056,1953.4,1952.9,0.59741614]
[1773004150991,0.5536056,1953.8,1953.1,0.59741614]
[1773004153685,0.5536056,1953.8,1953.3,0.59741614]
[1773004156090,0.5536056,1953.8,1953.0,0.59741614]
[1773004156293,0.5536056,1953.5,1952.8,0.00400907]
[1773004156595,6.95186,1954.3,1952.0,0.59741614]
[1773004156596,0.5536056,1952.8,1952.0,0.59741614]
[1773004156788,0.5536056,1952.6,1951.7,0.59741614]
[1773004156992,0.5536056,1952.4,1951.7,0.59741614]
[1773004157189,0.5536056,1952.4,1951.9,0.59741614]
[1773004157692,0.5536056,1951.9,1950.8,0.59741614]
[1773004157896,8.79048936,1952.3,1950.8,0.59741614]
[1773004157897,0.5536056,1951.7,1950.9,0.59741614]
[1773004158193,0.5536056,1951.7,1950.8,2.69837406]
[1773004159096,0.5536056,1951.7,1951.2,2.6929055]
[1773004159300,0.5536056,1951.7,1951.0,0.59208766]
[1773004159596,0.5536056,1951.7,1951.1,0.59208766]
[1773004160188,0.5536056,1952.3,1951.1,0.59208766]
[1773004161195,0.5536056,1952.3,1951.3,0.59028025]
[1773004161999,0.5536056,1952.3,1951.5,0.59028025]
[1773004162193,0.5536056,1952.3,1951.6,0.59028025]
[1773004163490,0.00491473,1952.4,1951.6,0.59028025]
[1773004163996,0.55852033,1952.4,1951.6,0.59028025]
[1773004166097,0.00491473,1952.4,1951.6,0.59028025]
[1773004166401,0.5536056,1952.6,1951.8,0.54874417]
[1773004167301,0.55946624,1952.6,1951.8,0.54874417]
[1773004168998,0.55946624,1952.6,1952.0,0.5507723]
[1773004168999,0.00586064,1952.6,1952.0,0.5507723]
[1773004169298,0.5536056,1952.8,1952.1,0.55165656]
[1773004170203,0.5536056,1953.5,1952.1,0.55165656]
[1773004170399,0.56001337,1953.5,1952.1,0.55165656]
[1773004172300,0.56001337,1953.5,1951.7,0.55416303]
[1773004172301,0.5536056,1952.8,1951.7,0.55416303]
[1773004175308,0.5536056,1952.8,1951.9,0.55789858]
[1773004175513,0.5536056,1952.8,1952.1,0.55789858]
[1773004175913,0.5536056,1952.8,1952.0,6.697]
[1773004176412,0.5536056,1952.8,1952.0,7.25489858]
[1773004177012,0.5536056,1952.8,1952.0,6.697]
[1773004178708,0.59483049,1952.6,1951.0,0.25629]
[1773004178913,0.59483049,1952.6,1950.3,0.08917052]
[1773004178914,0.59483049,1951.5,1950.3,0.08917052]
[1773004179215,0.59483049,1951.5,1950.0,18.78706567]
[1773004179216,0.59483049,1951.2,1950.0,7.26049358]
[1773004179510,0.59483049,1950.4,1949.1,0.56349358]
[1773004179708,6.697,1951.1,1949.1,0.56349358]
[1773004179709,0.59483049,1950.2,1949.1,0.56349358]
[1773004179905,0.59483049,1950.2,1949.0,0.86449014]
[1773004179906,0.59483049,1949.8,1949.0,0.86449014]
[1773004180304,0.59924231,1949.8,1949.0,0.87013615]
[1773004180510,0.59483049,1949.4,1948.5,6.697]
[1773004180810,0.59483049,1949.2,1948.0,0.57998878]
[1773004181009,0.59483049,1949.5,1948.2,0.57998878]
[1773004181610,0.59483049,1949.3,1948.2,0.58415786]
[1773004181810,0.59483049,1949.7,1948.4,0.57998878]
[1773004182113,0.59483049,1949.7,1948.3,9.04865387]
[1773004182114,0.59483049,1949.7,1948.6,0.57998878]
[1773004182315,0.00441182,1949.8,1949.0,0.57998878]
[1773004182515,0.59483049,1949.7,1948.9,7.27798878]
[1773004182715,0.59483049,1949.7,1948.9,6.698]
[1773004183215,0.59483049,1949.3,1948.4,0.57998878]
[1773004183417,0.59483049,1949.7,1948.4,0.57998878]
[1773004183617,0.59483049,1949.7,1948.6,0.57998878]
[1773004185718,0.59483049,1948.3,1947.6,0.57998878]
[1773004186018,0.59483049,1949.0,1947.8,0.57998878]
[1773004186318,0.59483049,1949.0,1948.0,0.57998878]
[1773004186714,0.59886569,1949.0,1948.0,0.5842286]
[1773004187910,0.0040352,1949.0,1948.2,0.57998878]
[1773004188115,0.59483049,1949.2,1948.4,0.57998878]
[1773004189116,0.0057477,1949.2,1948.6,0.57998878]
[1773004190318,0.59483049,1949.4,1948.6,0.57998878]
[1773004191320,0.59986119,1949.4,1948.6,0.57998878]
[1773004191516,0.59483049,1949.6,1948.6,0.57998878]
[1773004191717,0.59483049,1950.4,1948.9,0.57998878]
[1773004191911,0.59483049,1950.2,1949.1,0.57998878]
[1773004192510,0.59483049,1950.0,1949.0,6.701]
[1773004192720,0.59483049,1950.0,1949.0,7.28098878]
[1773004192921,0.59483049,1950.0,1949.1,0.57998878]
[1773004193618,0.5998416,1950.2,1949.1,0.57998878]
[1773004193824,0.5998416,1950.2,1949.4,0.57998878]
[1773004194019,0.5998416,1950.2,1949.6,0.57998878]
[1773004194822,0.5998416,1950.2,1947.5,5.637]
[1773004195027,0.59483049,1949.5,1948.7,0.57998878]
[1773004195227,0.25648,1949.6,1948.9,0.57998878]
[1773004195930,0.25648,1949.6,1948.9,0.58429378]
[1773004196130,0.59483049,1949.7,1948.9,0.58429378]
[1773004197333,0.59483049,1950.1,1948.9,0.58429378]
[1773004197534,0.59483049,1950.1,1949.1,0.57998878]
[1773004198128,0.59483049,1950.1,1949.0,5.42873205]
[1773004198332,0.59483049,1949.4,1948.9,0.0002698]
[1773004198535,0.59483049,1949.2,1948.9,0.0002698]
[1773004199035,0.59483049,1949.2,1948.4,0.57998878]
[1773004199830,0.59483049,1949.2,1948.4,0.58584831]
[1773004200430,3.14906088,1949.9,1948.5,0.57998878]
[1773004200431,0.59483049,1949.4,1948.5,0.57998878]
[1773004200636,0.59483049,1949.4,1948.7,0.57998878]
[1773004201535,0.59483049,1949.8,1948.7,0.55441465]
[1773004201730,0.59483049,1949.8,1948.9,0.57998878]
[1773004204338,0.59483049,1949.8,1948.6,6.7]
[1773004204339,0.00501111,1950.2,1948.7,0.59826969]
[1773004204341,0.55236761,1949.6,1948.7,0.59826969]
[1773004207440,0.5528037,1949.2,1948.6,7.28985219]
[1773004208239,0.5528037,1949.4,1948.7,0.58985219]
[1773004212145,0.5528037,1949.8,1948.7,0.58985219]
[1773004213044,0.5528037,1949.8,1948.9,0.58985219]
[1773004214253,0.5528037,1950.1,1948.9,0.58985219]
[1773004219855,0.5528037,1950.1,1949.1,0.58985219]
[1773004221454,0.5528037,1950.1,1949.3,0.58985219]
[1773004221754,0.5528037,1950.1,1949.5,0.58985219]
[1773004221955,0.5528037,1950.1,1949.7,0.58985219]
[1773004222254,0.5528037,1950.1,1949.7,5.98930473]
[1773004227257,0.5528037,1950.1,1949.7,6.57915692]
[1773004227559,0.5528037,1950.1,1949.7,5.98930473]
[1773004227958,0.5528037,1950.1,1949.7,6.57915692]
[1773004228259,0.39628576,1950.1,1949.8,0.58985219]
[1773004228460,0.25637,1950.4,1949.8,0.58985219]
[1773004229159,0.00353124,1950.3,1949.8,0.59411079]
[1773004230260,0.25992124,1950.2,1949.8,0.59411079]
[1773004230960,0.00353124,1950.3,1949.8,0.59411079]
[1773004231158,0.26084908,1950.2,1949.8,0.59411079]
[1773004231363,0.01017783,1950.4,1949.8,0.59411079]
[1773004231662,0.00571875,1950.4,1949.8,0.59411079]
[1773004232559,0.25639,1950.2,1949.8,0.59411079]
[1773004232854,0.00571875,1950.4,1949.8,0.59411079]
[1773004233353,0.25638,1950.3,1949.8,0.59411079]
[1773004235760,0.25638,1950.3,1949.8,0.0042586]
[1773004236566,0.25638,1950.3,1949.7,0.60265441]
[1773004237563,0.25638,1950.3,1949.7,0.60632698]
[1773004238265,0.25644,1949.9,1949.7,0.60632698]
[1773004238467,0.25644,1949.9,1949.7,0.51560434]
[1773004239466,0.00571875,1950.4,1949.7,0.51560434]
[1773004239770,0.3321409,1950.4,1949.7,0.51560434]
[1773004240669,0.5885109,1950.4,1949.7,0.51560434]
[1773004241071,0.26208875,1950.4,1949.7,0.51560434]
[1773004242671,0.58566525,1950.4,1949.7,0.51560434]
[1773004242869,0.3235765,1949.4,1948.7,0.59189491]
[1773004243169,0.25651,1949.3,1948.7,0.59189491]
[1773004243673,0.31125174,1949.2,1948.5,7.29089491]
[1773004243872,0.31125174,1949.0,1948.5,0.59618614]
[1773004244068,0.31554439,1949.0,1948.5,0.59618614]
[1773004244373,0.31125174,1949.4,1948.5,0.59618614]
[1773004245274,0.31598442,1949.4,1948.5,0.59618614]
[1773004246662,0.00473268,1949.4,1948.5,0.59618614]
[1773004246863,0.00473268,1949.4,1948.7,0.59189491]
[1773004247176,0.00473268,1949.4,1948.9,0.59189491]
[1773004248873,0.2067902,1949.4,1948.9,0.59189491]
[1773004249069,0.00473268,1949.4,1948.9,0.59189491]
[1773004250974,0.22033877,1949.8,1948.9,0.59189491]
[1773004252072,0.22066357,1949.7,1948.8,6.701]
[1773004252279,0.22066357,1949.7,1948.9,0.59189491]
[1773004254872,0.26215678,1949.8,1948.9,0.59189491]
[1773004255580,0.26215678,1949.8,1949.1,0.59189491]
[1773004255973,0.22199926,1950.2,1949.1,0.59189491]
[1773004256370,0.22199926,1950.2,1949.2,0.59189491]
[1773004256675,0.22199926,1950.2,1949.4,0.59189491]
[1773004257073,0.22642168,1950.2,1949.4,0.59189491]
[1773004261176,0.00442242,1950.2,1949.4,0.59189491]
[1773004262170,0.2351574,1950.5,1949.4,0.59189491]
[1773004263176,0.23915682,1950.5,1949.4,0.59189491]
[1773004263378,0.23915682,1950.5,1949.6,0.56880493]
[1773004264586,0.24322277,1950.5,1949.6,0.56880493]
[1773004264979,0.49958277,1950.5,1949.6,0.56880493]
[1773004265184,0.23922335,1950.4,1949.6,0.56880493]
[1773004266583,0.26035942,1950.5,1949.6,0.56880493]
[1773004267276,0.50539163,1950.5,1949.6,0.56880493]
[1773004267883,0.26035942,1950.5,1949.6,0.56880493]
[1773004268183,0.24503221,1950.9,1949.8,0.56758947]
[1773004268378,0.24503221,1950.9,1950.0,0.56758947]
[1773004269186,0.00529551,1950.9,1950.1,0.56758947]
[1773004275191,0.30843914,1951.4,1950.1,0.56758947]
[1773004275495,0.30843914,1951.6,1950.4,0.56758947]
[1773004275694,0.30843914,1951.6,1950.6,0.56758947]
[1773004276292,0.31445017,1951.6,1950.6,0.56758947]
[1773004281902,0.31445017,1951.6,1950.8,0.56758947]
[1773004282101,0.31445017,1951.6,1951.0,0.56758947]
[1773004284498,0.00601103,1951.6,1951.0,0.56758947]
[1773004284699,0.30154733,1951.6,1951.0,0.56758947]
[1773004285299,0.30102862,1951.8,1951.0,0.56758947]
[1773004285501,0.55718862,1952.0,1951.0,0.56758947]
[1773004286502,0.56245784,1952.0,1951.2,0.56758947]
[1773004286702,0.56245784,1952.0,1951.4,0.56758947]
[1773004286908,0.56245784,1952.0,1951.4,0.57396276]
[1773004287205,0.30102862,1951.7,1951.4,0.00637329]
[1773004287402,0.29990833,1951.5,1951.2,0.56758947]
[1773004287598,0.29990833,1951.5,1950.9,0.56758947]
[1773004288406,0.29990833,1951.5,1950.9,0.57170199]
[1773004288601,0.25621,1951.6,1950.9,0.57170199]
[1773004289009,0.29990833,1951.7,1951.1,0.56758947]
[1773004289209,0.30101235,1952.0,1951.1,0.56758947]
[1773004293119,0.2831378,1951.8,1951.1,0.56758947]
[1773004295422,0.286169,1952.0,1951.1,0.56758947]
[1773004296121,0.28089978,1951.9,1951.1,0.56758947]
[1773004297118,0.542329,1952.0,1951.1,0.56758947]
[1773004297722,0.27398757,1951.9,1951.1,0.56758947]
[1773004301516,0.27398757,1951.9,1951.1,2.66694669]
[1773004301721,0.27398757,1951.9,1951.2,0.54831783]
[1773004304824,0.26142922,1952.0,1951.2,0.54831783]
[1773004305125,0.53529743,1952.0,1951.4,0.54831783]
[1773004305621,0.27913743,1952.0,1951.4,0.54831783]
[1773004314034,0.26661825,1951.7,1951.1,0.54831783]
[1773004314231,2.09935722,1951.6,1951.1,0.54831783]
[1773004314432,0.26661825,1951.5,1951.1,0.54831783]
[1773004320438,0.26661825,1951.5,1951.0,0.54831783]
[1773004321133,0.26661825,1951.5,1950.9,6.70611252]
[1773004321134,0.26117206,1951.3,1950.9,0.00411252]
[1773004321340,0.26117206,1951.3,1950.9,0.55243035]
[1773004321643,0.4476986,1951.1,1950.5,7.25131783]
[1773004321933,0.4476986,1951.1,1950.6,0.54831783]
[1773004322540,0.25629,1951.0,1950.6,0.55296125]
[1773004322737,0.56453297,1950.9,1950.6,0.55296125]
[1773004323430,2.65347602,1951.2,1950.6,0.55296125]
[1773004323635,0.5541188,1951.4,1950.6,0.55296125]
[1773004323837,2.09935722,1951.3,1950.6,0.55296125]
[1773004324137,0.5541188,1951.2,1950.6,0.55296125]
[1773004327439,0.25623,1951.5,1950.6,0.55296125]
[1773004327636,0.80234506,1951.5,1950.6,0.55296125]
[1773004329546,0.54611506,1951.4,1950.6,0.55296125]
[1773004329846,0.54611506,1951.6,1950.8,0.58302073]
[1773004333848,0.54611506,1951.9,1950.8,0.58302073]
[1773004334147,0.26142922,1952.0,1950.8,0.58302073]
[1773004334148,0.54611506,1951.6,1950.8,0.58302073]
[1773004372386,0.54611506,1951.6,1950.6,6.70864342]
[1773004372387,0.56631754,1951.4,1950.7,0.56615111]
[1773004377287,0.56631754,1951.2,1950.1,0.56615111]
[1773004378389,0.56631754,1951.2,1950.1,0.57046389]
[1773004378590,0.56631754,1951.0,1950.1,0.57046389]
[1773004380291,0.56631754,1951.3,1950.4,0.56615111]
[1773004382089,0.56631754,1951.5,1950.8,0.56615111]
[1773004382588,0.25622,1951.6,1950.5,0.56615111]
[1773004382787,0.57817278,1951.0,1950.1,0.56671968]
[1773004384692,0.57817278,1951.3,1950.4,0.5624069]
[1773004387595,0.57817278,1951.3,1950.5,0.55294012]
[1773004388392,0.57817278,1951.3,1950.6,0.55294012]
[1773004397210,0.54229359,1951.1,1950.6,0.55294012]
[1773004397411,0.54229359,1951.1,1950.7,0.55294012]
[1773004402914,0.79855359,1951.2,1950.7,0.55294012]
[1773004403214,0.54229359,1951.1,1950.7,0.55294012]
[1773004406408,0.54229359,1951.3,1950.8,6.705]
[1773004406612,0.54229359,1951.1,1950.8,6.705]
[1773004407914,0.54229359,1951.1,1950.8,7.25794012]
[1773004408117,0.79855359,1951.2,1950.9,0.55294012]
[1773004408814,0.54229359,1951.1,1950.9,0.55294012]
[1773004409116,0.54229359,1951.1,1950.8,7.25794012]
[1773004409614,0.54229359,1951.1,1950.8,6.705]
[1773004409822,0.54229359,1950.9,1950.4,0.55294012]
[1773004412217,0.25629,1951.0,1950.4,0.55294012]
[1773004412423,0.79858359,1951.0,1950.4,0.55294012]
[1773004412722,0.56750797,1950.9,1950.4,0.55294012]
[1773004413122,0.56750797,1950.9,1950.5,6.706]
[1773004413328,0.56750797,1950.9,1950.4,0.55294012]
[1773004413329,0.56750797,1950.9,1950.2,0.57477082]
[1773004413523,0.56750797,1950.4,1949.9,6.706]
[1773004413717,0.56750797,1950.4,1950.0,0.57477082]
[1773004414126,0.56750797,1950.4,1950.1,0.57477082]
[1773004414324,0.56750797,1950.4,1950.0,0.57477082]
[1773004414526,0.56750797,1950.4,1949.9,7.28077082]
[1773004414725,0.57203381,1950.4,1949.9,7.28707521]
[1773004416719,0.57203381,1950.4,1950.0,6.706]
[1773004417130,0.09881829,1949.7,1949.2,0.41862147]
[1773004417324,0.09333783,1949.3,1948.9,0.57477082]
[1773004417519,0.25647,1949.6,1949.1,0.57477082]
[1773004417822,0.25647,1949.6,1949.3,0.57477082]
[1773004417823,0.34980783,1949.6,1949.3,0.57477082]
[1773004418023,0.09333783,1949.5,1949.3,6.706]
[1773004418225,0.09333783,1949.5,1949.3,6.71131607]
[1773004419124,0.09333783,1949.5,1949.3,0.00531607]
[1773004419324,0.09333783,1949.5,1949.3,6.71231607]
[1773004419630,0.0857286,1949.5,1949.3,6.71231607]
[1773004420728,0.0857286,1949.7,1949.4,0.57477082]
[1773004420928,0.0857286,1950.1,1949.5,0.57477082]
[1773004421333,0.0857286,1950.1,1949.7,0.57477082]
[1773004421524,0.0857286,1950.1,1949.8,7.28177082]
[1773004421833,0.05501387,1950.0,1949.6,0.41862147]
[1773004422127,0.05501387,1950.2,1949.6,0.41862147]
[1773004422326,0.05501387,1950.1,1949.7,6.707]
[1773004422726,0.25638,1950.3,1949.5,0.57477082]
[1773004422727,0.05501387,1949.9,1949.5,0.57477082]
[1773004423032,0.05501387,1949.7,1949.4,0.41862147]
[1773004424026,0.25647,1949.6,1949.4,7.6e-06]
[1773004424234,0.25647,1949.6,1948.2,2.52122783]
[1773004424235,0.25655,1949.1,1948.0,6.707]
[1773004424529,4.20163944,1949.5,1947.2,0.60349921]
[1773004424530,2.10081972,1948.3,1947.2,0.60349921]
[1773004424829,2.10081972,1948.6,1947.8,0.60349921]
[1773004425031,0.25659,1948.7,1947.9,2.70431893]
[1773004425232,2.36163955,1948.7,1947.9,0.61014484]
[1773004425527,0.26081983,1948.7,1947.9,0.00664563]
[1773004425726,0.26081983,1948.7,1947.9,0.61201823]
[1773004425934,0.00422983,1948.7,1947.9,0.61201823]
[1773004427034,0.25648,1949.6,1947.9,0.61201823]
[1773004427329,0.25648,1949.6,1948.1,0.60325769]
[1773004428130,0.26221579,1949.6,1948.1,0.60325769]
[1773004430028,0.26221579,1949.6,1948.3,0.63567363]
[1773004430228,0.26221579,1949.6,1948.5,0.63567363]
[1773004430538,0.26221579,1949.6,1948.6,0.63567363]
[1773004431331,0.25657,1948.9,1947.9,0.63896008]
[1773004432532,0.2566,1948.6,1947.9,0.00664563]
[1773004433134,0.2566,1948.6,1946.7,3.16046761]
[1773004433135,0.2566,1948.6,1947.5,0.63231445]
[1773004434231,0.2566,1948.6,1947.5,0.00398748]
[1773004434436,0.2566,1948.6,1947.5,0.62373645]
[1773004435237,0.25664,1948.3,1947.5,0.62373645]
[1773004436231,3.16046761,1948.1,1947.5,0.00398748]
[1773004436435,6.61466368,1948.2,1944.2,0.87967821]
[1773004436634,6.61466368,1948.2,1944.3,0.57477082]
[1773004436635,0.257,1945.6,1944.3,0.57477082]
[1773004436941,0.56750797,1947.1,1945.2,0.57477082]
[1773004437134,0.82433797,1946.9,1945.6,0.57477082]
[1773004437331,0.56750797,1946.8,1945.6,0.57477082]
[1773004437738,0.0058796,1946.8,1945.6,0.57878285]
[1773004438434,0.0058796,1946.8,1945.9,0.57477082]
[1773004438635,0.57338757,1946.8,1945.9,0.57477082]
[1773004438841,0.0058796,1946.8,1945.9,0.57477082]
[1773004439543,0.0058796,1946.8,1946.1,0.57477082]
[1773004439739,0.53910582,1947.3,1946.1,0.57477082]
[1773004439941,0.53910582,1947.5,1946.2,0.57477082]
[1773004440540,0.53910582,1948.0,1946.5,0.57477082]
[1773004440741,0.54413873,1948.0,1946.8,0.57477082]
[1773004440941,0.54413873,1948.0,1946.9,0.57477082]
[1773004441139,0.00503291,1948.0,1947.1,0.57477082]
[1773004441340,0.00503291,1948.0,1947.1,0.58084248]
[1773004448649,0.56278081,1948.0,1947.1,0.58084248]
[1773004449941,0.25664,1948.3,1947.1,0.58084248]
[1773004450142,0.25664,1948.3,1947.3,0.56266626]
[1773004450544,0.25664,1948.3,1947.2,12.13060522]
[1773004450545,0.25664,1948.3,1947.5,0.56266626]
[1773004451046,0.81062839,1948.3,1947.5,0.56266626]
[1773004451450,0.26156945,1948.3,1947.5,0.56266626]
[1773004453545,0.80735092,1948.3,1947.5,0.56266626]
[1773004453751,0.80245147,1948.1,1947.5,0.56266626]
[1773004454355,0.25667,1948.1,1947.5,0.56266626]
[1773004455851,0.2566,1948.7,1947.5,0.56266626]
[1773004456154,0.80730878,1948.7,1947.5,0.56266626]
[1773004456453,0.2566,1948.7,1947.7,0.56266626]
[1773004456648,0.2566,1948.7,1947.9,0.56266626]
[1773004457052,0.26076289,1948.7,1947.9,0.56266626]
[1773004459050,0.55116275,1948.6,1947.9,0.56266626]
[1773004459454,0.25662,1948.5,1947.9,0.56266626]
[1773004461753,0.00416289,1948.7,1947.9,0.56266626]
[1773004462358,0.83032528,1948.5,1947.9,0.56266626]
[1773004463350,0.83034528,1948.3,1947.9,0.56266626]
[1773004463658,0.83034528,1948.3,1947.7,0.56266626]
[1773004463959,0.25664,1948.3,1947.7,0.56266626]
[1773004465960,0.83034528,1948.3,1947.7,0.56266626]
[1773004466656,0.25664,1948.3,1947.7,0.56266626]
[1773004467262,0.57786817,1948.7,1947.7,0.56266626]
[1773004467462,0.00416289,1948.7,1947.7,0.56266626]
[1773004467862,0.25658,1948.8,1947.9,0.56266626]
[1773004468063,0.57370528,1949.3,1947.9,0.56266626]
[1773004468264,0.57370528,1949.3,1948.1,0.56266626]
[1773004468869,0.5788201,1949.3,1948.1,0.56266626]
[1773004469663,0.83022528,1949.2,1948.1,0.56266626]
[1773004469864,0.57370528,1949.1,1948.1,0.56266626]
[1773004470867,0.25655,1949.0,1948.1,0.56266626]
[1773004471371,0.83025528,1949.0,1948.1,0.56266626]
[1773004471667,0.25664,1948.4,1948.1,0.56266626]
[1773004473665,2.33020367,1949.6,1947.7,4.108]
[1773004473862,13.33988132,1950.5,1947.7,4.108]
[1773004473863,0.60002268,1950.4,1949.0,3.16071525]
[1773004474073,0.60002268,1950.4,1949.1,6.708]
[1773004474273,0.25633,1950.7,1949.1,6.708]
[1773004474274,0.60002268,1950.2,1949.2,40.8]
[1773004474472,0.60002268,1950.0,1949.2,40.8]
[1773004474664,0.60002268,1949.8,1949.2,0.00369779]
[1773004474867,0.00424864,1950.0,1949.2,0.00369779]
[1773004475067,0.00424864,1950.0,1949.3,40.8]
[1773004475373,0.00424864,1950.0,1949.4,0.00577548]
[1773004476367,1e-08,1950.0,1949.4,0.00577548]
[1773004477277,0.60058046,1950.0,1949.4,0.00577548]
[1773004479678,1e-08,1950.0,1949.4,0.00577548]
[1773004481279,1e-08,1950.0,1949.3,6.707]
[1773004482579,1e-08,1950.0,1949.2,0.00369779]
[1773004483377,0.59976687,1950.0,1949.2,0.00369779]
[1773004483676,0.59976686,1949.8,1948.6,6.71020943]
[1773004484381,0.25643,1949.9,1948.3,0.00420943]
[1773004484382,0.59791797,1949.4,1948.3,0.00420943]
[1773004484581,0.59791797,1949.2,1948.3,0.00420943]
[1773004484782,0.59791797,1949.2,1948.3,0.01018459]
[1773004485583,0.59779712,1949.0,1948.3,0.01018459]
[1773004486679,0.59779712,1948.8,1948.3,0.00597516]
[1773004487080,0.59779712,1948.6,1947.8,6.71045112]
[1773004488083,0.59854,1948.4,1947.8,0.00646288]
[1773004488482,0.59854,1948.2,1947.8,0.00646288]
[1773004488878,0.59854,1948.0,1946.7,0.00296536]
[1773004489384,0.59854,1948.0,1947.1,0.00296536]
[1773004489989,0.59854,1948.0,1947.2,0.00937268]
[1773004491482,0.59854,1948.0,1947.1,0.00429345]
[1773004491685,0.59854,1948.0,1947.1,0.02741107]
[1773004492985,0.58846387,1948.5,1947.2,0.02311762]
[1773004493181,0.58846387,1948.4,1947.2,5.80940579]
[1773004493485,0.00574126,1948.6,1947.1,0.00429345]
[1773004493486,0.58760505,1948.2,1947.1,0.00429345]
[1773004493684,0.58760505,1948.0,1947.1,0.00429345]
[1773004494484,0.25669,1947.9,1947.1,0.00429345]
[1773004494790,0.58760505,1947.8,1947.1,0.00429345]
[1773004497691,0.58760505,1947.8,1946.4,6.71]
[1773004497890,0.58760505,1947.8,1946.5,0.02562081]
[1773004498589,0.58760505,1947.8,1946.5,0.0317614]
[1773004499490,0.58760505,1947.6,1946.5,0.0317614]
[1773004500392,0.58760505,1947.6,1946.6,5.78062457]
[1773004500592,0.58760505,1947.2,1946.5,0.0320206]
[1773004500890,0.59315821,1947.2,1946.5,0.0320206]
[1773004501588,0.00555316,1947.2,1946.5,0.0320206]
[1773004501792,0.84437505,1947.4,1946.6,5.52504213]
[1773004502093,0.58760505,1947.1,1946.5,0.00614059]
[1773004502394,0.58760505,1946.9,1946.2,6.711]
[1773004502595,0.58760505,1946.9,1946.0,0.02581346]
[1773004503295,0.59265826,1946.9,1946.0,0.03181766]
[1773004508496,0.58605682,1946.7,1946.0,0.0060042]
[1773004509199,0.58605682,1946.5,1945.6,0.02880699]
[1773004510192,0.58605682,1946.5,1945.6,0.03396255]
[1773004510395,0.58605682,1946.5,1945.8,0.02884496]
[1773004510595,0.58605682,1946.5,1945.9,0.02884496]
[1773004510793,0.58239871,1946.8,1945.9,0.02884496]
[1773004510992,0.58239871,1946.8,1945.9,0.56982475]
[1773004513100,0.58239871,1946.8,1945.7,0.56982475]
[1773004513805,0.58239871,1948.3,1946.0,0.25695]
[1773004513999,0.58239871,1948.1,1946.7,0.3732995]
[1773004514299,0.58239871,1947.7,1946.6,0.3732995]
[1773004514505,0.58239871,1947.5,1946.4,0.3732995]
[1773004514999,0.58781921,1947.5,1946.6,0.3732995]
[1773004515205,0.58781921,1947.5,1946.7,0.3732995]
[1773004515603,0.58781921,1947.5,1946.9,0.3729604]
[1773004516012,0.0054205,1947.5,1946.9,0.3729604]
[1773004516207,0.58239871,1947.9,1947.0,5.9304869]
[1773004516408,0.58239871,1947.9,1946.8,0.3729604]
[1773004517301,0.58794217,1947.9,1946.8,0.37716337]
[1773004517700,0.58794217,1947.9,1946.8,0.00420297]
[1773004517906,0.58794217,1947.9,1946.8,0.34084363]
[1773004519503,0.56890874,1947.7,1946.8,0.00420297]
[1773004520906,0.56890874,1947.0,1945.5,0.33879716]
[1773004521209,0.56890874,1947.0,1946.2,0.33879716]
[1773004521510,0.56890874,1947.0,1946.3,0.33927782]
[1773004521910,0.56890874,1947.0,1946.3,0.00623337]
[1773004522206,0.56890874,1947.0,1946.3,0.34551119]
[1773004522708,0.56890874,1947.0,1946.3,0.00623337]
[1773004523701,0.56890874,1947.0,1945.7,0.33359734]
[1773004524502,0.56890874,1946.8,1945.7,0.33359734]
[1773004524700,0.56890874,1946.8,1945.6,6.711]
[1773004524905,0.56890874,1946.8,1945.7,0.00591081]
[1773004525608,0.56890874,1946.8,1945.7,0.34328531]
[1773004528914,0.56890874,1946.8,1945.9,0.33773073]
[1773004529108,0.56890874,1946.8,1946.1,0.33773073]
[1773004529611,0.56890874,1946.8,1946.2,0.33772342]
[1773004529812,0.60005364,1945.4,1944.3,6.712]
[1773004530114,0.60005364,1945.4,1944.4,5.9075276]
[1773004530305,0.60005364,1945.4,1944.3,40.8]
[1773004530503,0.60005364,1945.4,1944.4,6.712]
[1773004530706,0.60396729,1945.4,1944.4,6.71616047]
[1773004530907,0.25706,1945.1,1944.4,0.00416047]
[1773004531107,0.60005364,1944.8,1944.3,6.712]
[1773004532104,0.60005364,1944.8,1944.3,6.71867736]
[1773004532309,0.25714,1944.5,1942.8,3.16469725]
[1773004532512,0.56890874,1944.3,1942.9,6.712]
[1773004532815,0.56890874,1944.3,1943.0,0.46950232]
[1773004533015,0.56890874,1944.3,1942.9,6.712]
[1773004533316,3.70475842,1944.1,1942.9,0.00636064]
[1773004533614,0.54006117,1944.0,1942.9,0.00636064]
[1773004533818,0.54006117,1943.8,1942.9,0.00636064]
[1773004534315,0.54528001,1944.0,1943.2,0.59502225]
[1773004534520,0.54528001,1944.0,1943.3,7.30802225]
[1773004534719,0.54006117,1945.2,1943.5,0.59502225]
[1773004535317,0.54006117,1944.4,1943.3,0.59502225]
[1773004535614,0.54006117,1944.4,1943.6,0.59502225]
[1773004535914,0.00555869,1944.4,1943.8,0.59502225]
[1773004536108,0.54006117,1944.7,1943.9,0.59502225]
[1773004536315,0.54006117,1944.7,1944.0,0.59502225]
[1773004537115,0.54528627,1944.7,1944.0,0.59502225]
[1773004537513,0.54006117,1944.9,1944.2,0.59502225]
[1773004537818,0.54006117,1944.9,1944.3,6.714]
[1773004538016,0.54006117,1945.8,1944.4,0.59502225]
[1773004538216,0.54006117,1945.8,1944.5,0.59502225]
[1773004538525,0.54586264,1945.8,1944.5,0.60136355]